[Event "Live Chess"]
[Site "Chess.com"]
[Date "2023.05.20"]
[Round "-"]
[White "1600x"]
[Black "Salpingidis"]
[Result "1/2-1/2"]
[WhiteElo "1728"]
[BlackElo "2284"]
[TimeControl "300"]
[EndTime "12:31:23 PDT"]
[Termination "Game drawn by repetition"]

1. Nc3 {[%clk 0:04:54.4]} 1... e6 {[%clk 0:04:59.9]} 2. d4 {[%clk 0:04:50.8]}
2... d5 {[%clk 0:04:59.3]} 3. Qd3 {[%clk 0:04:41.9]} 3... Nf6 {[%clk 0:04:57.8]}
4. e4 {[%clk 0:04:41]} 4... dxe4 {[%clk 0:04:52.3]} 5. Nxe4 {[%clk 0:04:39.6]}
5... Nbd7 {[%clk 0:04:50.3]} 6. Nxf6+ {[%clk 0:04:37.8]} 6... Nxf6 {[%clk
0:04:49.4]} 7. Nf3 {[%clk 0:04:35.6]} 7... Be7 {[%clk 0:04:46.9]} 8. Be2 {[%clk
0:04:32.1]} 8... O-O {[%clk 0:04:45.8]} 9. O-O {[%clk 0:04:30]} 9... b6 {[%clk
0:04:44.4]} 10. c4 {[%clk 0:04:27.6]} 10... Bb7 {[%clk 0:04:43.3]} 11. Ne5
{[%clk 0:04:26.1]} 11... c5 {[%clk 0:04:37.9]} 12. dxc5 {[%clk 0:04:24.7]} 12...
bxc5 {[%clk 0:04:32.6]} 13. Qxd8 {[%clk 0:04:22.7]} 13... Rfxd8 {[%clk
0:04:32.5]} 14. Nd3 {[%clk 0:04:21.2]} 14... Rd4 {[%clk 0:04:16.6]} 15. Be3
{[%clk 0:04:19.7]} 15... Rxc4 {[%clk 0:04:13.9]} 16. Ne5 {[%clk 0:04:17.5]}
16... Rc2 {[%clk 0:04:10.8]} 17. Bd1 {[%clk 0:04:15.8]} 17... Rxb2 {[%clk
0:04:07.5]} 18. Nd3 {[%clk 0:04:14.1]} 18... Rb6 {[%clk 0:04:04.1]} 19. Bxc5
{[%clk 0:04:12.2]} 19... Bxc5 {[%clk 0:03:58.5]} 20. Nxc5 {[%clk 0:04:12.1]}
20... Bd5 {[%clk 0:03:56.4]} 21. Bb3 {[%clk 0:04:10.2]} 21... Rc8 {[%clk
0:03:50.2]} 22. Rfc1 {[%clk 0:04:08.1]} 22... Bxb3 {[%clk 0:03:47]} 23. axb3
{[%clk 0:04:05.7]} 23... Rbc6 {[%clk 0:03:43.9]} 24. b4 {[%clk 0:04:04.3]} 24...
a6 {[%clk 0:03:38]} 25. Rcb1 {[%clk 0:04:00.9]} 25... h6 {[%clk 0:03:33.2]} 26.
Rxa6 {[%clk 0:03:54.7]} 26... Nd5 {[%clk 0:03:22.5]} 27. Rxc6 {[%clk 0:03:42.1]}
27... Rxc6 {[%clk 0:03:22.4]} 28. g3 {[%clk 0:03:40.7]} 28... Nxb4 {[%clk
0:03:18.1]} 29. Nxe6 {[%clk 0:03:37]} 29... Rxe6 {[%clk 0:03:06.7]} 30. Rxb4
{[%clk 0:03:34.8]} 30... Kh7 {[%clk 0:03:06.6]} 31. Rb7 {[%clk 0:03:32.8]} 31...
Kg6 {[%clk 0:03:03.2]} 32. g4 {[%clk 0:03:31.1]} 32... Ra6 {[%clk 0:03:01.8]}
33. Kg2 {[%clk 0:03:28.7]} 33... Ra3 {[%clk 0:03:00.8]} 34. h4 {[%clk
0:03:26.9]} 34... Kf6 {[%clk 0:02:58.1]} 35. f3 {[%clk 0:03:25.4]} 35... Kg6
{[%clk 0:02:56.2]} 36. Rb6+ {[%clk 0:03:23]} 36... Kh7 {[%clk 0:02:55]} 37. Kg3
{[%clk 0:03:21.3]} 37... g6 {[%clk 0:02:53.3]} 38. Kf4 {[%clk 0:03:19.5]} 38...
Kg7 {[%clk 0:02:52.9]} 39. Kg3 {[%clk 0:03:17.9]} 39... Ra4 {[%clk 0:02:52.1]}
40. Rb5 {[%clk 0:03:16.2]} 40... Rc4 {[%clk 0:02:50.2]} 41. Ra5 {[%clk
0:03:14.6]} 41... Rb4 {[%clk 0:02:48.2]} 42. Ra7 {[%clk 0:03:12.5]} 42... Rc4
{[%clk 0:02:47.4]} 43. Rd7 {[%clk 0:03:11.2]} 43... Rb4 {[%clk 0:02:46.7]} 44.
Rd5 {[%clk 0:03:09.4]} 44... Rc4 {[%clk 0:02:46]} 45. h5 {[%clk 0:03:06.9]}
45... gxh5 {[%clk 0:02:42.1]} 46. Rxh5 {[%clk 0:03:05.2]} 46... Rb4 {[%clk
0:02:40.9]} 47. Kf2 {[%clk 0:03:02.9]} 47... Rb3 {[%clk 0:02:38.9]} 48. Kg3
{[%clk 0:03:01.8]} 48... Rb4 {[%clk 0:02:38.6]} 49. Kf2 {[%clk 0:03:00.2]} 49...
Rb3 {[%clk 0:02:38]} 50. Kg3 {[%clk 0:02:58.9]} 50... Rb4 {[%clk 0:02:37.6]}
1/2-1/2

[Event "Live Chess"]
[Site "Chess.com"]
[Date "2023.05.20"]
[Round "-"]
[White "omisoc"]
[Black "amazinggoalkeeper"]
[Result "1-0"]
[WhiteElo "2198"]
[BlackElo "499"]
[TimeControl "300"]
[EndTime "12:31:30 PDT"]
[Termination "omisoc won by resignation"]

1. b3 {[%clk 0:04:57.1]} 1... e5 {[%clk 0:04:54.7]} 2. e3 {[%clk 0:04:55.1]}
2... d5 {[%clk 0:04:53.2]} 3. g3 {[%clk 0:04:53.4]} 3... f5 {[%clk 0:04:50.9]}
4. Bb2 {[%clk 0:04:52.1]} 4... c5 {[%clk 0:04:49.1]} 5. Bxe5 {[%clk 0:04:49.5]}
5... Ke7 {[%clk 0:04:47.8]} 6. Bb2 {[%clk 0:04:48.4]} 6... d4 {[%clk 0:04:45.5]}
7. exd4 {[%clk 0:04:46]} 7... cxd4 {[%clk 0:04:45.4]} 8. Nf3 {[%clk 0:04:42.5]}
8... d3 {[%clk 0:04:43.8]} 9. Bxd3 {[%clk 0:04:41.1]} 9... Bd7 {[%clk
0:04:39.7]} 10. O-O {[%clk 0:04:39.7]} 10... Qc7 {[%clk 0:04:39.6]} 11. Re1+
{[%clk 0:04:38.7]} 1-0

[Event "Live Chess"]
[Site "Chess.com"]
[Date "2023.05.20"]
[Round "-"]
[White "McSlash1"]
[Black "NatashaRegan"]
[Result "1-0"]
[WhiteElo "2056"]
[BlackElo "1818"]
[TimeControl "300"]
[EndTime "12:31:37 PDT"]
[Termination "McSlash1 won by resignation"]

1. e4 {[%clk 0:04:59.4]} 1... c5 {[%clk 0:04:53.8]} 2. Nc3 {[%clk 0:04:57.8]}
2... Nc6 {[%clk 0:04:50.7]} 3. f4 {[%clk 0:04:57.3]} 3... e6 {[%clk 0:04:47.4]}
4. Bc4 {[%clk 0:04:56.5]} 4... Nf6 {[%clk 0:04:43.7]} 5. d3 {[%clk 0:04:53.5]}
5... d5 {[%clk 0:04:41.1]} 6. exd5 {[%clk 0:04:43.9]} 6... exd5 {[%clk 0:04:39]}
7. Bb3 {[%clk 0:04:43.3]} 7... Bg4 {[%clk 0:04:32.3]} 8. Nf3 {[%clk 0:04:37.2]}
8... Nd4 {[%clk 0:04:30.7]} 9. Ba4+ {[%clk 0:04:33]} 9... Nd7 {[%clk 0:04:18.1]}
10. h3 {[%clk 0:04:10.6]} 10... Bxf3 {[%clk 0:04:14.3]} 11. gxf3 {[%clk
0:04:10.5]} 11... Qh4+ {[%clk 0:04:12.3]} 12. Kf1 {[%clk 0:04:06]} 12... O-O-O
{[%clk 0:03:54.6]} 13. Nb5 {[%clk 0:03:39.4]} 13... Nf5 {[%clk 0:03:39.2]} 14.
Qe1 {[%clk 0:03:26.1]} 14... Ng3+ {[%clk 0:03:31]} 15. Kg2 {[%clk 0:03:19.6]}
15... Nb6 {[%clk 0:03:11.4]} 16. b3 {[%clk 0:02:19.7]} 16... Qf6 {[%clk
0:02:49.1]} 17. Qxg3 {[%clk 0:01:59.6]} 17... Qxa1 {[%clk 0:02:45]} 18. f5
{[%clk 0:01:59]} 18... Rd7 {[%clk 0:02:28.5]} 19. Nxa7+ {[%clk 0:01:50.5]} 19...
Kd8 {[%clk 0:02:25.9]} 20. Bg5+ {[%clk 0:01:50.1]} 20... f6 {[%clk 0:02:17.1]}
21. Rxa1 {[%clk 0:01:46.1]} 21... Bd6 {[%clk 0:02:14]} 22. Qh4 {[%clk
0:01:40.5]} 22... Nxa4 {[%clk 0:02:10.5]} 23. bxa4 {[%clk 0:01:30.1]} 23... fxg5
{[%clk 0:02:07.8]} 24. Qxg5+ {[%clk 0:01:30]} 24... Be7 {[%clk 0:02:06.8]} 25.
Qxg7 {[%clk 0:01:24.7]} 25... Re8 {[%clk 0:01:57.8]} 26. Re1 {[%clk 0:01:10]}
26... Kc7 {[%clk 0:01:47.6]} 27. Nb5+ {[%clk 0:01:04.2]} 27... Kb6 {[%clk
0:01:46]} 28. f6 {[%clk 0:00:53.1]} 28... Rdd8 {[%clk 0:01:06.3]} 29. f7 {[%clk
0:00:48.8]} 1-0

[Event "Live Chess"]
[Site "Chess.com"]
[Date "2023.05.20"]
[Round "-"]
[White "dudeasy"]
[Black "yarek"]
[Result "0-1"]
[WhiteElo "1053"]
[BlackElo "1890"]
[TimeControl "300"]
[EndTime "12:31:48 PDT"]
[Termination "yarek won by resignation"]

1. Nf3 {[%clk 0:04:58.1]} 1... g6 {[%clk 0:04:59.1]} 2. g3 {[%clk 0:04:55.3]}
2... Bg7 {[%clk 0:04:58]} 3. Bg2 {[%clk 0:04:52.7]} 3... c6 {[%clk 0:04:56.8]}
4. c4 {[%clk 0:04:49.4]} 4... d5 {[%clk 0:04:55.4]} 5. d3 {[%clk 0:04:43.5]}
5... Nf6 {[%clk 0:04:51]} 6. Nbd2 {[%clk 0:04:40.9]} 6... O-O {[%clk 0:04:48.5]}
7. O-O {[%clk 0:04:38.1]} 7... Nbd7 {[%clk 0:04:42.4]} 8. Rb1 {[%clk 0:04:36.7]}
8... e5 {[%clk 0:04:38.1]} 9. b3 {[%clk 0:04:31.1]} 9... Re8 {[%clk 0:04:17.1]}
10. Bb2 {[%clk 0:04:29.1]} 10... d4 {[%clk 0:04:10.4]} 11. Re1 {[%clk
0:04:13.9]} 11... Nc5 {[%clk 0:04:04.8]} 12. Qc2 {[%clk 0:04:11.1]} 12... Bg4
{[%clk 0:03:50.8]} 13. Rbd1 {[%clk 0:04:04]} 13... Bxf3 {[%clk 0:03:42.6]} 14.
Nxf3 {[%clk 0:03:58.1]} 14... Bh6 {[%clk 0:03:37.4]} 15. e3 {[%clk 0:03:51.5]}
15... dxe3 {[%clk 0:03:13.1]} 16. fxe3 {[%clk 0:03:49.3]} 16... Ng4 {[%clk
0:03:09.6]} 17. Qe2 {[%clk 0:03:46.9]} 17... Bxe3+ {[%clk 0:02:57.8]} 18. Kh1
{[%clk 0:03:43.2]} 18... Nf2+ {[%clk 0:02:55.6]} 19. Kg1 {[%clk 0:03:36.5]}
19... Nxd1+ {[%clk 0:02:52.6]} 20. Kf1 {[%clk 0:03:35.4]} 20... Nxb2 {[%clk
0:02:42.5]} 21. Qxe3 {[%clk 0:03:31.9]} 21... Ncxd3 {[%clk 0:02:32.5]} 22. Re2
{[%clk 0:03:22.9]} 22... e4 {[%clk 0:02:21.9]} 23. Nd2 {[%clk 0:03:14]} 23...
Nd1 {[%clk 0:02:13]} 24. Qh6 {[%clk 0:03:10.1]} 24... e3 {[%clk 0:02:06.5]} 25.
Nf3 {[%clk 0:03:06.1]} 25... N3f2 {[%clk 0:01:52.3]} 26. Ng5 {[%clk 0:03:03.6]}
26... Qf6 {[%clk 0:01:22]} 27. Qxh7+ {[%clk 0:02:59.5]} 27... Kf8 {[%clk
0:01:20.1]} 28. Qh6+ {[%clk 0:02:52.8]} 28... Ke7 {[%clk 0:01:15.2]} 29. Nh7
{[%clk 0:02:48.2]} 29... Ng4+ {[%clk 0:01:03.3]} 30. Nxf6 {[%clk 0:02:36.6]}
30... Nxh6 {[%clk 0:01:02.7]} 31. Ne4 {[%clk 0:02:33.3]} 31... Nf5 {[%clk
0:00:50.6]} 32. Ke1 {[%clk 0:02:29.8]} 32... Rad8 {[%clk 0:00:48.4]} 33. g4
{[%clk 0:02:25.7]} 33... Nd4 {[%clk 0:00:44.4]} 34. Rxe3 {[%clk 0:02:10.5]} 0-1

[Event "Live Chess"]
[Site "Chess.com"]
[Date "2023.05.20"]
[Round "-"]
[White "JanMur7"]
[Black "Chesscoach_Golichenko"]
[Result "0-1"]
[WhiteElo "1956"]
[BlackElo "2648"]
[TimeControl "300"]
[EndTime "12:32:04 PDT"]
[Termination "Chesscoach_Golichenko won by resignation"]

1. e4 {[%clk 0:04:57.1]} 1... Nf6 {[%clk 0:04:52.3]} 2. Nc3 {[%clk 0:04:55.3]}
2... d5 {[%clk 0:04:43.8]} 3. e5 {[%clk 0:04:54.2]} 3... d4 {[%clk 0:04:27.7]}
4. exf6 {[%clk 0:04:51.1]} 4... dxc3 {[%clk 0:04:25.4]} 5. fxg7 {[%clk 0:04:41]}
5... cxd2+ {[%clk 0:04:23.7]} 6. Qxd2 {[%clk 0:04:37.9]} 6... Qxd2+ {[%clk
0:04:19.1]} 7. Bxd2 {[%clk 0:04:37.8]} 7... Bxg7 {[%clk 0:04:18.4]} 8. O-O-O
{[%clk 0:04:37]} 8... O-O {[%clk 0:04:16.5]} 9. Nf3 {[%clk 0:04:36]} 9... e5
{[%clk 0:04:12.2]} 10. Bc3 {[%clk 0:04:30.7]} 10... Bg4 {[%clk 0:04:03.3]} 11.
Be2 {[%clk 0:04:09.6]} 11... Nc6 {[%clk 0:03:40]} 12. Rhe1 {[%clk 0:04:04.2]}
12... Rfe8 {[%clk 0:03:25]} 13. Kb1 {[%clk 0:03:45.6]} 13... Rad8 {[%clk
0:03:21.2]} 14. Rxd8 {[%clk 0:03:33.3]} 14... Rxd8 {[%clk 0:03:16.3]} 15. h3
{[%clk 0:03:28.2]} 15... Bh5 {[%clk 0:03:12.8]} 16. g4 {[%clk 0:03:18.4]} 16...
Bg6 {[%clk 0:03:11.1]} 17. Bb5 {[%clk 0:03:14.7]} 17... Nd4 {[%clk 0:02:56.7]}
18. Bxd4 {[%clk 0:02:44.1]} 18... exd4 {[%clk 0:02:51.6]} 19. Re8+ {[%clk
0:02:35.9]} 19... Rxe8 {[%clk 0:02:45.6]} 20. Bxe8 {[%clk 0:02:35.8]} 20... Kf8
{[%clk 0:02:33.6]} 21. Ba4 {[%clk 0:02:05.3]} 21... h6 {[%clk 0:02:22.5]} 22.
Nh4 {[%clk 0:01:24]} 22... Be4 {[%clk 0:02:09.8]} 23. f3 {[%clk 0:01:18.7]}
23... Bh7 {[%clk 0:02:07.5]} 24. f4 {[%clk 0:01:16.7]} 24... Be4 {[%clk
0:02:03.5]} 25. Bd7 {[%clk 0:01:12.5]} 25... Ke7 {[%clk 0:01:53.7]} 26. Bf5
{[%clk 0:01:10.4]} 26... Bh1 {[%clk 0:01:49.4]} 27. Bd3 {[%clk 0:01:08.4]} 27...
c5 {[%clk 0:01:34.8]} 28. Nf5+ {[%clk 0:00:55.6]} 28... Kf8 {[%clk 0:01:33.1]}
29. Nd6 {[%clk 0:00:37.1]} 29... Bf6 {[%clk 0:01:28.2]} 30. Nf5 {[%clk
0:00:34.1]} 30... Bg2 {[%clk 0:01:23.3]} 31. h4 {[%clk 0:00:25.6]} 31... Bh3
{[%clk 0:01:17.2]} 32. g5 {[%clk 0:00:24]} 32... hxg5 {[%clk 0:01:15.9]} 33.
hxg5 {[%clk 0:00:22.7]} 33... Bd8 {[%clk 0:01:14.7]} 34. Nd6 {[%clk 0:00:21.1]}
34... b6 {[%clk 0:01:09.2]} 35. Bf5 {[%clk 0:00:19.3]} 35... Bxf5 {[%clk
0:01:01.6]} 36. Nxf5 {[%clk 0:00:19.2]} 36... Bc7 {[%clk 0:01:01.2]} 37. g6
{[%clk 0:00:16.5]} 37... fxg6 {[%clk 0:00:56.3]} 38. Nh4 {[%clk 0:00:16.4]}
38... Kg7 {[%clk 0:00:52.3]} 39. Ng2 {[%clk 0:00:16.3]} 39... Kf6 {[%clk
0:00:49.7]} 40. Kc1 {[%clk 0:00:16.2]} 40... Kf5 {[%clk 0:00:49.3]} 41. Kd2
{[%clk 0:00:16.1]} 41... Bxf4+ {[%clk 0:00:48.1]} 42. Nxf4 {[%clk 0:00:15.1]}
42... Kxf4 {[%clk 0:00:48]} 43. Ke2 {[%clk 0:00:14.8]} 43... g5 {[%clk
0:00:47.5]} 44. Kf2 {[%clk 0:00:14.7]} 44... g4 {[%clk 0:00:47.4]} 0-1

[Event "Live Chess"]
[Site "Chess.com"]
[Date "2023.05.20"]
[Round "-"]
[White "GEMdzq"]
[Black "LaupMiths"]
[Result "1-0"]
[WhiteElo "2260"]
[BlackElo "1813"]
[TimeControl "300"]
[EndTime "12:32:08 PDT"]
[Termination "GEMdzq won by resignation"]

1. e4 {[%clk 0:04:58.2]} 1... d6 {[%clk 0:04:58.2]} 2. d4 {[%clk 0:04:57]} 2...
Nf6 {[%clk 0:04:57.6]} 3. Nc3 {[%clk 0:04:56.2]} 3... g6 {[%clk 0:04:56.6]} 4.
Be2 {[%clk 0:04:53]} 4... Bg7 {[%clk 0:04:54.8]} 5. h3 {[%clk 0:04:51.2]} 5...
h5 {[%clk 0:04:52.2]} 6. Nf3 {[%clk 0:04:50.4]} 6... a6 {[%clk 0:04:49.3]} 7. a4
{[%clk 0:04:47.4]} 7... b6 {[%clk 0:04:47.7]} 8. O-O {[%clk 0:04:43.6]} 8... Bb7
{[%clk 0:04:47.1]} 9. Qd3 {[%clk 0:04:42.3]} 9... Nbd7 {[%clk 0:04:45.2]} 10. e5
{[%clk 0:04:39.1]} 10... Nd5 {[%clk 0:04:42.2]} 11. e6 {[%clk 0:04:34.1]} 11...
N7f6 {[%clk 0:04:32.9]} 12. exf7+ {[%clk 0:04:26.9]} 12... Kxf7 {[%clk
0:04:32.5]} 13. Ng5+ {[%clk 0:04:25.9]} 13... Kg8 {[%clk 0:04:28.4]} 14. Qxg6
{[%clk 0:04:12.8]} 14... Qe8 {[%clk 0:04:27.2]} 15. Qf5 {[%clk 0:04:11.1]} 15...
Bc8 {[%clk 0:04:22.3]} 16. Qd3 {[%clk 0:03:57]} 16... Nxc3 {[%clk 0:04:20.4]}
17. bxc3 {[%clk 0:03:54.1]} 17... Bd7 {[%clk 0:04:03.9]} 18. Bf3 {[%clk
0:03:50.3]} 18... d5 {[%clk 0:04:01.7]} 19. c4 {[%clk 0:03:48.8]} 19... c6
{[%clk 0:03:59.9]} 20. Re1 {[%clk 0:03:39.8]} 20... Ra7 {[%clk 0:03:48.1]} 21.
Rb1 {[%clk 0:03:31.3]} 21... Rb7 {[%clk 0:03:39.9]} 22. cxd5 {[%clk 0:03:26.1]}
22... cxd5 {[%clk 0:03:38.4]} 23. c4 {[%clk 0:03:24.9]} 23... Bc6 {[%clk
0:03:34.2]} 24. Qb3 {[%clk 0:03:05.7]} 24... Bh6 {[%clk 0:03:26.7]} 25. cxd5
{[%clk 0:03:04.3]} 25... Bxg5 {[%clk 0:03:24.9]} 26. dxc6+ {[%clk 0:03:02.7]}
1-0

[Event "Live Chess"]
[Site "Chess.com"]
[Date "2023.05.20"]
[Round "-"]
[White "onemoretime1975"]
[Black "Man-Del-Brot"]
[Result "1-0"]
[WhiteElo "1913"]
[BlackElo "1172"]
[TimeControl "300"]
[EndTime "12:32:15 PDT"]
[Termination "onemoretime1975 won by checkmate"]

1. e4 {[%clk 0:04:56]} 1... e5 {[%clk 0:04:58.1]} 2. Nf3 {[%clk 0:04:53.4]} 2...
Nc6 {[%clk 0:04:55.2]} 3. Bc4 {[%clk 0:04:51.9]} 3... f5 {[%clk 0:04:53.4]} 4.
d3 {[%clk 0:04:48.6]} 4... f4 {[%clk 0:04:51]} 5. Bd5 {[%clk 0:04:42.7]} 5...
Nf6 {[%clk 0:04:45]} 6. Bxc6 {[%clk 0:04:40]} 6... dxc6 {[%clk 0:04:34.3]} 7.
Nxe5 {[%clk 0:04:38.6]} 7... Bd6 {[%clk 0:04:14.2]} 8. Nc4 {[%clk 0:04:30.9]}
8... b5 {[%clk 0:03:42.3]} 9. Nxd6+ {[%clk 0:04:28.2]} 9... Qxd6 {[%clk
0:03:41]} 10. f3 {[%clk 0:04:20.1]} 10... O-O {[%clk 0:03:38.9]} 11. c3 {[%clk
0:04:17.4]} 11... c5 {[%clk 0:03:36.2]} 12. Qb3+ {[%clk 0:04:14.5]} 12... Kh8
{[%clk 0:03:27.1]} 13. Qxb5 {[%clk 0:04:12.7]} 13... Ba6 {[%clk 0:03:18.5]} 14.
Qb3 {[%clk 0:03:51.5]} 14... Bxd3 {[%clk 0:03:15.5]} 15. Nd2 {[%clk 0:03:40.5]}
15... Rab8 {[%clk 0:03:10]} 16. Qd1 {[%clk 0:03:34.4]} 16... Rfe8 {[%clk
0:02:34]} 17. Kf2 {[%clk 0:03:26.9]} 17... Qb6 {[%clk 0:02:02]} 18. c4 {[%clk
0:03:21.2]} 18... Rbd8 {[%clk 0:01:55.7]} 19. Qb3 {[%clk 0:03:17.6]} 19... Qe6
{[%clk 0:01:48.7]} 20. Re1 {[%clk 0:03:13.1]} 20... Rb8 {[%clk 0:01:42.3]} 21.
Qc3 {[%clk 0:03:10.9]} 21... Red8 {[%clk 0:01:29.5]} 22. b3 {[%clk 0:03:08.1]}
22... Qd6 {[%clk 0:01:22.5]} 23. Bb2 {[%clk 0:03:04.2]} 23... Nd7 {[%clk
0:00:56.5]} 24. Qxg7# {[%clk 0:03:00.1]} 1-0

[Event "Live Chess"]
[Site "Chess.com"]
[Date "2023.05.20"]
[Round "-"]
[White "JoshMcK"]
[Black "jennybobby44"]
[Result "1/2-1/2"]
[WhiteElo "1570"]
[BlackElo "1864"]
[TimeControl "300"]
[EndTime "12:32:19 PDT"]
[Termination "Game drawn by repetition"]

1. e4 {[%clk 0:04:58.9]} 1... c5 {[%clk 0:04:57.7]} 2. c3 {[%clk 0:04:57.6]}
2... d5 {[%clk 0:04:55.3]} 3. exd5 {[%clk 0:04:56.8]} 3... Nf6 {[%clk 0:04:54]}
4. d4 {[%clk 0:04:52.6]} 4... Nxd5 {[%clk 0:04:52.2]} 5. Nf3 {[%clk 0:04:49.9]}
5... e6 {[%clk 0:04:51.2]} 6. Bc4 {[%clk 0:04:45.4]} 6... Nf6 {[%clk 0:04:47.8]}
7. O-O {[%clk 0:04:42.3]} 7... Be7 {[%clk 0:04:47.2]} 8. dxc5 {[%clk 0:04:38.9]}
8... Qxd1 {[%clk 0:04:45.9]} 9. Rxd1 {[%clk 0:04:37.3]} 9... Bxc5 {[%clk
0:04:45.1]} 10. Bb5+ {[%clk 0:04:36.2]} 10... Bd7 {[%clk 0:04:44.1]} 11. Bxd7+
{[%clk 0:04:32.5]} 11... Nbxd7 {[%clk 0:04:44]} 12. Bg5 {[%clk 0:04:30.7]} 12...
O-O-O {[%clk 0:04:42]} 13. Na3 {[%clk 0:04:26.9]} 13... a6 {[%clk 0:04:36.4]}
14. Nc4 {[%clk 0:04:24.9]} 14... Nb6 {[%clk 0:04:00.2]} 15. Nxb6+ {[%clk
0:04:13]} 15... Bxb6 {[%clk 0:03:58.6]} 16. Ne5 {[%clk 0:04:07.7]} 16... Rxd1+
{[%clk 0:03:50.7]} 17. Rxd1 {[%clk 0:04:07.6]} 17... Rf8 {[%clk 0:03:48.3]} 18.
Nc4 {[%clk 0:03:56]} 18... Bc7 {[%clk 0:03:44.5]} 19. Nd6+ {[%clk 0:03:51.1]}
19... Bxd6 {[%clk 0:03:43.5]} 20. Rxd6 {[%clk 0:03:50.6]} 20... Kc7 {[%clk
0:03:43]} 21. Rd3 {[%clk 0:03:45.4]} 21... Rd8 {[%clk 0:03:37.9]} 22. Rxd8
{[%clk 0:03:40.8]} 22... Kxd8 {[%clk 0:03:37.8]} 23. Bxf6+ {[%clk 0:03:36.6]}
23... gxf6 {[%clk 0:03:36.9]} 24. Kf1 {[%clk 0:03:35.9]} 24... Kd7 {[%clk
0:03:36.5]} 25. Ke2 {[%clk 0:03:35.2]} 25... Kd6 {[%clk 0:03:36.1]} 26. Ke3
{[%clk 0:03:34.3]} 26... Kd5 {[%clk 0:03:35.7]} 27. b3 {[%clk 0:03:33.2]} 27...
b5 {[%clk 0:03:34.5]} 28. f4 {[%clk 0:03:30.1]} 28... e5 {[%clk 0:03:33.6]} 29.
g3 {[%clk 0:03:28]} 29... e4 {[%clk 0:03:32.5]} 30. g4 {[%clk 0:03:25.8]} 30...
a5 {[%clk 0:03:27.8]} 31. a3 {[%clk 0:03:21.2]} 31... a4 {[%clk 0:03:19.3]} 32.
bxa4 {[%clk 0:03:08.2]} 32... bxa4 {[%clk 0:03:18.5]} 33. h4 {[%clk 0:03:00.7]}
33... Kc4 {[%clk 0:03:15.5]} 34. Kxe4 {[%clk 0:02:57]} 34... Kxc3 {[%clk
0:03:14.7]} 35. Ke3 {[%clk 0:02:54.1]} 35... Kb3 {[%clk 0:03:13.8]} 36. Kd3
{[%clk 0:02:52.9]} 36... Kxa3 {[%clk 0:03:13.3]} 37. Kc3 {[%clk 0:02:52.2]}
37... Ka2 {[%clk 0:03:09.5]} 38. Kc2 {[%clk 0:02:51.5]} 38... Ka3 {[%clk
0:03:08.2]} 39. Kc3 {[%clk 0:02:49.6]} 39... Ka2 {[%clk 0:03:01]} 40. Kc2 {[%clk
0:02:45.3]} 40... Ka3 {[%clk 0:03:00.1]} 41. Kc3 {[%clk 0:02:44.5]} 1/2-1/2

[Event "Live Chess"]
[Site "Chess.com"]
[Date "2023.05.20"]
[Round "-"]
[White "Bot_Boy"]
[Black "OceanFloater"]
[Result "0-1"]
[WhiteElo "330"]
[BlackElo "983"]
[TimeControl "300"]
[EndTime "12:32:22 PDT"]
[Termination "OceanFloater won on time"]

1. e3 {[%clk 0:04:57.8]} 1... c6 {[%clk 0:04:59.4]} 2. Nf3 {[%clk 0:04:54.8]}
2... d5 {[%clk 0:04:56.7]} 3. d4 {[%clk 0:04:53.9]} 3... Nf6 {[%clk 0:04:54.1]}
4. b3 {[%clk 0:04:46.6]} 4... Bf5 {[%clk 0:04:47.4]} 5. Bb2 {[%clk 0:04:44.7]}
5... e6 {[%clk 0:04:43]} 6. Nbd2 {[%clk 0:04:43.5]} 6... c5 {[%clk 0:04:41.5]}
7. Bb5+ {[%clk 0:04:27.1]} 7... Nc6 {[%clk 0:04:37.7]} 8. Ne5 {[%clk 0:04:18.2]}
8... Qc7 {[%clk 0:04:27.3]} 9. Bxc6+ {[%clk 0:04:00.3]} 9... bxc6 {[%clk
0:04:25.8]} 10. f4 {[%clk 0:03:44.9]} 10... cxd4 {[%clk 0:04:21.2]} 11. Bxd4
{[%clk 0:03:38.6]} 11... c5 {[%clk 0:04:20]} 12. g4 {[%clk 0:03:07]} 12... cxd4
{[%clk 0:04:15.4]} 13. gxf5 {[%clk 0:03:03.7]} 13... dxe3 {[%clk 0:04:13.6]} 14.
fxe6 {[%clk 0:02:51]} 14... exd2+ {[%clk 0:04:10.8]} 15. Qxd2 {[%clk 0:02:45.6]}
15... fxe6 {[%clk 0:04:05.5]} 16. O-O-O {[%clk 0:02:33.8]} 16... Bd6 {[%clk
0:03:59.5]} 17. Rhe1 {[%clk 0:02:14]} 17... Ne4 {[%clk 0:03:53.9]} 18. Rxe4
{[%clk 0:02:02]} 18... dxe4 {[%clk 0:03:44.9]} 19. Qd4 {[%clk 0:01:25.2]} 19...
Ba3+ {[%clk 0:03:40.9]} 20. Kb1 {[%clk 0:01:15.7]} 20... Rd8 {[%clk 0:03:29.2]}
21. Qa4+ {[%clk 0:00:58.6]} 21... Ke7 {[%clk 0:02:53.4]} 22. Qxa3+ {[%clk
0:00:36.6]} 22... Rd6 {[%clk 0:02:50.3]} 23. Rxd6 {[%clk 0:00:27.5]} 23... Qxd6
{[%clk 0:02:49.3]} 24. Nc4 {[%clk 0:00:13]} 24... Rd8 {[%clk 0:02:42.5]} 25.
Nxd6 {[%clk 0:00:10.8]} 25... Rxd6 {[%clk 0:02:41.9]} 26. Qxa7+ {[%clk
0:00:09.5]} 26... Kf6 {[%clk 0:02:41.2]} 27. Qb8 {[%clk 0:00:05.9]} 27... Rd1+
{[%clk 0:02:38.7]} 28. Kb2 {[%clk 0:00:04.9]} 28... Rd2 {[%clk 0:02:38]} 29. h4
{[%clk 0:00:02.7]} 29... Rf2 {[%clk 0:02:36.8]} 30. Qe5+ {[%clk 0:00:01.3]}
30... Ke7 {[%clk 0:02:35.2]} 0-1